bitfinex-derivatives/quotes_SOLF0:USTF0_20250113
["timestamp","ask_amount","ask_price","bid_price","bid_amount"]
[1736794872053,2.8384,176.24,176.17,2.8393]
[1736794873256,2.8385,176.23,176.17,2.8393]
[1736794873456,23.98481546,176.28,176.14,8.0227]
[1736794873646,2.839,176.2,176.14,8.0227]
[1736794874254,23.98481546,176.28,176.14,8.0227]
[1736794874655,1.95128075,176.27,176.14,8.0227]
[1736794874853,0.97563688,176.26,176.14,8.0227]
[1736794875053,2.8384,176.24,176.15,2.8397]
[1736794875254,0.97564387,176.27,176.14,8.0227]
[1736794875455,0.97564387,176.27,176.16,22.33281546]
[1736794875655,2.8383,176.24,176.18,2.8392]
[1736794875856,0.97564387,176.27,176.18,2.8392]
[1736794876153,0.97564387,176.27,176.16,22.33281546]
[1736794876454,0.97564387,176.27,176.17,3.3192]
[1736794877256,0.97564387,176.27,176.19,22.33281546]
[1736794877751,0.97564387,176.27,176.22,22.33281546]
[1736794877954,0.97564387,176.27,176.22,28.67281546]
[1736794878453,0.97564387,176.27,176.22,6.34]
[1736794878653,0.97564387,176.27,176.24,2.8383]
[1736794878956,0.97564387,176.27,176.22,6.34]
[1736794879758,0.97564387,176.27,176.17,9.6592]
[1736794880152,0.97564387,176.27,176.18,2.8391]
[1736794880458,0.97564387,176.27,176.22,22.33281546]
[1736794880757,0.97564387,176.27,176.26,2.838]
[1736794881752,0.97564387,176.27,176.24,9.1781]
[1736794881952,0.97564387,176.27,176.24,6.34]
[1736794882958,0.97564387,176.27,176.19,22.33281546]
[1736794883757,0.97564387,176.27,176.19,28.67281546]
[1736794883957,0.97564387,176.27,176.22,2.8386]
[1736794884355,0.97564387,176.27,176.19,28.67281546]
[1736794884660,22.33281546,176.32,176.19,28.67281546]
[1736794884859,2.8381,176.25,176.19,6.34]
[1736794885161,22.33281546,176.29,176.15,1.6829]
[1736794885358,4.4916,176.28,176.16,22.33281546]
[1736794885559,4.4916,176.28,176.23,2.8384]
[1736794886058,2.8378,176.27,176.16,22.33281546]
[1736794886259,2.8378,176.27,176.21,2.8386]
[1736794886458,1.654,176.28,176.16,22.33281546]
[1736794886664,2.8383,176.24,176.19,2.8389]
[1736794886962,22.33281546,176.32,176.19,22.33281546]
[1736794887155,1.6897,176.33,176.19,22.33281546]
[1736794887458,1.6897,176.33,176.27,2.8378]
[1736794887655,1.6897,176.33,176.23,6.34]
[1736794887850,1.6897,176.33,176.27,2.8377]
[1736794888050,2.8368,176.33,176.23,6.34]
[1736794888254,28.67281546,176.38,176.25,22.33281546]
[1736794888460,28.67281546,176.38,176.29,2.8374]
[1736794888663,28.67281546,176.38,176.25,22.33281546]
[1736794889860,22.33281546,176.38,176.25,22.33281546]
[1736794890457,2.8367,176.34,176.28,2.8375]
[1736794890662,2.8367,176.34,176.25,22.33281546]
[1736794892059,2.8367,176.34,176.29,2.8374]
[1736794892765,2.837,176.33,176.28,2.8376]
[1736794892967,2.837,176.33,176.25,22.33281546]
[1736794893359,4.983,176.4,176.25,22.33281546]
[1736794893560,4.983,176.4,176.28,22.33281546]
[1736794894661,2.836,176.38,176.34,2.8367]
[1736794895567,7.8188,176.4,176.35,2.8365]
[1736794895764,1.5781,176.45,176.31,22.33281546]
[1736794895961,1.5781,176.45,176.34,22.33281546]
[1736794896160,6.81472929,176.46,176.41,2.8355]
[1736794896161,9.64962929,176.46,176.41,2.8355]
[1736794896568,6.81472929,176.46,176.37,28.65281546]
[1736794896764,3.3632,176.48,176.37,28.65281546]
[1736794897161,1.5781,176.51,176.37,28.65281546]
[1736794897162,1.5781,176.51,176.4,22.33281546]
[1736794897471,2.8341,176.51,176.4,22.33281546]
[1736794897674,2.8341,176.51,176.43,22.33281546]
[1736794897871,1.6319,176.55,176.46,2.8347]
[1736794898068,1.6319,176.55,176.44,6.32]
[1736794898462,2.8338,176.52,176.47,2.8345]
[1736794898867,1.6319,176.55,176.44,6.32]
[1736794899060,2.8338,176.53,176.48,2.8344]
[1736794899262,1.7313,176.57,176.46,22.33281546]
[1736794899571,1.7313,176.57,176.52,2.8338]
[1736794900269,7.9688,176.64,176.52,2.8338]
[1736794900270,1.6488,176.64,176.52,22.33281546]
[1736794900471,228.84433851,176.75,176.59,22.33281546]
[1736794900664,228.84433851,176.75,176.62,22.33281546]
[1736794900863,152.56289234,176.76,176.62,22.33281546]
[1736794901067,152.56289234,176.76,176.65,22.33281546]
[1736794901473,155.39299234,176.76,176.68,22.33281546]
[1736794901775,152.56289234,176.76,176.68,28.65281546]
[1736794901969,5.0682,176.79,176.68,28.65281546]
[1736794902366,27.40101546,176.79,176.63,22.33281546]
[1736794902574,27.40101546,176.79,176.64,6.32]
[1736794902765,5.0682,176.79,176.66,22.33281546]
[1736794903570,2.8301,176.76,176.68,2.8311]
[1736794903777,5.0682,176.79,176.68,2.8311]
[1736794904077,5.0682,176.79,176.65,35.99378614]
[1736794904471,5.0682,176.79,176.68,35.99378614]
[1736794906474,2.8295,176.79,176.73,2.8304]
[1736794906684,41.06568614,176.86,176.72,6.32]
[1736794907081,41.06568614,176.86,176.76,2.8299]
[1736794907383,41.06568614,176.86,176.72,6.32]
[1736794907877,41.06568614,176.86,176.74,35.99378614]
[1736794907878,5.0719,176.86,176.74,35.99378614]
[1736794908085,5.0719,176.86,176.77,35.99378614]
[1736794908482,1.5794,176.94,176.8,35.99378614]
[1736794908684,2.8282,176.87,176.81,2.8291]
[1736794908988,35.99378614,176.89,176.76,6.32]
[1736794909287,35.99378614,176.89,176.74,35.99378614]
[1736794909983,35.99378614,176.8,176.67,35.99378614]
[1736794910186,5.0246,176.79,176.67,35.99378614]
[1736794910381,5.0246,176.79,176.64,42.31378614]
[1736794910587,35.99378614,176.77,176.64,35.99378614]
[1736794910786,2.831,176.7,176.64,35.99378614]
[1736794910983,35.99378614,176.77,176.64,35.99378614]
[1736794911384,2.8314,176.67,176.61,38.82598614]
[1736794911684,42.31378614,176.74,176.6,1.6392]
[1736794911891,6.32,176.74,176.61,35.99378614]
[1736794912687,2.831,176.7,176.63,2.8319]
[1736794912990,11.3446,176.79,176.64,35.99378614]
[1736794913987,11.3446,176.79,176.65,2.8315]
[1736794914193,35.99378614,176.77,176.61,35.99378614]
[1736794916094,35.99378614,176.77,176.65,2.8316]
[1736794916798,35.99378614,176.77,176.63,2.8319]
[1736794917386,2.8312,176.68,176.63,2.8319]
[1736794918690,35.99378614,176.77,176.61,35.99378614]
[1736794918897,2.8315,176.66,176.61,38.82598614]
[1736794919391,35.99378614,176.77,176.61,38.82598614]
[1736794919584,2.8314,176.67,176.62,2.8322]
[1736794919789,35.99378614,176.77,176.61,35.99378614]
[1736794919984,2.8315,176.67,176.61,35.99378614]
[1736794920189,35.99378614,176.77,176.61,35.99378614]
[1736794920796,35.99378614,176.77,176.62,2.8321]
[1736794921001,35.99378614,176.77,176.61,35.99378614]
[1736794921291,5.0246,176.79,176.64,35.99378614]
[1736794921694,2.8314,176.67,176.64,35.99378614]
[1736794921890,35.99378614,176.77,176.61,35.99378614]
[1736794922291,35.99378614,176.77,176.64,35.99378614]
[1736794922585,5.0246,176.79,176.67,2.8313]
[1736794922792,2.8307,176.71,176.64,35.99378614]
[1736794923493,35.99378614,176.77,176.61,35.99378614]
[1736794924697,35.99378614,176.74,176.59,98.9022]
[1736794924897,2.832,176.64,176.59,101.7348]
[1736794925289,22.17717654,176.68,176.53,22.17717654]
[1736794925495,22.17717654,176.65,176.52,6.32]
[1736794925898,3.152,176.67,176.53,22.17717654]
[1736794926600,2.8328,176.59,176.54,2.8334]
[1736794926798,2.8328,176.59,176.53,22.17717654]
[1736794926991,3.152,176.67,176.53,22.17717654]
[1736794927194,3.152,176.67,176.55,2.8332]
[1736794927394,3.152,176.67,176.53,22.17717654]
[1736794927600,2.8322,176.63,176.58,2.8328]
[1736794927798,3.152,176.67,176.53,22.17717654]
[1736794928801,2.8323,176.62,176.57,2.8329]
[1736794929301,2.8327,176.59,176.55,2.8332]
[1736794929501,3.152,176.67,176.53,22.17717654]
[1736794930091,3.152,176.67,176.52,6.32]
[1736794930297,2.832,176.64,176.6,2.8324]
[1736794930507,3.152,176.67,176.56,22.17717654]
[1736794931002,2.8317,176.66,176.56,22.17717654]
[1736794931200,6.32,176.73,176.52,197.32]
[1736794931201,22.17717654,176.77,176.62,22.17717654]
[1736794931396,1.6558,176.76,176.63,6.32]
[1736794931598,2.8309,176.7,176.66,2.8315]
[1736794931798,1.6558,176.76,176.65,22.17717654]
[1736794931998,1.6558,176.76,176.63,6.32]
[1736794932200,22.17717654,176.74,176.63,6.32]
[1736794932592,22.17717654,176.74,176.6,3.3223]
[1736794932799,22.17717654,176.74,176.6,6.1548]
[1736794933303,22.17717654,176.74,176.6,3.3223]
[1736794933493,2.8314,176.67,176.63,2.8319]
[1736794933701,1.6558,176.76,176.6,3.3223]
[1736794933896,3.3302,176.78,176.68,22.17717654]
[1736794934207,1.6886,176.78,176.71,22.17717654]
[1736794934801,1.6886,176.78,176.71,25.00787654]
[1736794935005,1.6886,176.78,176.69,6.32]
[1736794935402,2.8309,176.7,176.69,6.32]
[1736794935702,1.5955,176.77,176.64,7.9296]
[1736794936008,22.17717654,176.75,176.59,28.49717654]
[1736794936206,1.6908,176.74,176.59,28.49717654]
[1736794936802,1.5955,176.77,176.65,22.17717654]
[1736794937004,2.8303,176.74,176.7,2.8309]
[1736794937206,1.5955,176.77,176.66,7.9296]
[1736794937507,2.8311,176.69,176.66,7.9296]
[1736794938304,22.17717654,176.69,176.56,22.17717654]
[1736794938505,22.17717654,176.69,176.53,97.2]
[1736794938506,1.7048,176.68,176.55,6.32]
[1736794938812,22.17717654,176.66,176.55,6.32]
[1736794939304,2.8325,176.61,176.57,2.8329]
[1736794940108,4.9199,176.68,176.55,6.32]
[1736794940109,2.8322,176.62,176.58,2.8327]
[1736794940306,1.7048,176.68,176.56,22.17717654]
[1736794940612,2.8322,176.63,176.59,2.8326]
[1736794940907,1.7048,176.68,176.56,22.17717654]
[1736794941312,2.8318,176.65,176.6,2.8324]
[1736794941608,1.7048,176.68,176.55,6.32]
[1736794941807,1.7048,176.68,176.57,2.8329]
[1736794942109,1.7048,176.68,176.55,6.32]
[1736794942310,2.8323,176.62,176.57,2.8328]
[1736794942510,1.7048,176.68,176.57,2.8328]
[1736794942911,2.8323,176.62,176.57,2.8328]
[1736794943811,1.7048,176.68,176.55,6.32]
[1736794944713,1.7048,176.68,176.56,22.17717654]
[1736794945208,1.7048,176.68,176.59,2.8326]
[1736794945410,1.7048,176.68,176.55,6.32]
[1736794945813,22.17717654,176.66,176.55,6.32]
[1736794946506,2.8328,176.58,176.55,9.1531]
[1736794946706,2.8328,176.58,176.54,3.3089]
[1736794946906,7.9002,176.67,176.53,97.2]
[1736794946907,22.17717654,176.63,176.53,97.2]
[1736794947111,22.17717654,176.6,176.47,61.76888723]
[1736794947412,22.17717654,176.57,176.45,31.3406619]
[1736794947609,2.8343,176.49,176.45,34.1754619]
[1736794947809,2.8343,176.49,176.45,2.8348]
[1736794948007,22.17717654,176.54,176.44,3.3018]
[1736794948310,2.8344,176.49,176.45,2.8349]
[1736794948712,22.17717654,176.54,176.37,22.17717654]
[1736794948907,22.17717654,176.51,176.38,8.0494]
[1736794949108,1.6313,176.5,176.38,8.0494]
[1736794949308,2.8347,176.46,176.38,8.0494]
[1736794949609,1.6313,176.5,176.38,8.0494]
[1736794949810,2.8349,176.46,176.4,2.8356]
[1736794950212,2.8349,176.46,176.38,1.7294]
[1736794950413,2.8349,176.45,176.39,6.32]
[1736794950614,22.17717654,176.48,176.38,1.7294]
[1736794950911,22.17717654,176.48,176.37,1.5724]
[1736794951411,22.17717654,176.48,176.4,2.8355]
[1736794951610,2.8349,176.45,176.4,2.8355]
[1736794951809,22.17717654,176.48,176.37,1.5724]
[1736794952116,22.17717654,176.42,176.28,28.49717654]
[1736794952313,1.6066,176.41,176.28,6.32]
[1736794952609,2.8362,176.38,176.28,28.49717654]
[1736794952916,1.6066,176.41,176.31,22.17717654]
[1736794953613,2.8359,176.39,176.34,2.8365]
[1736794953809,1.6066,176.41,176.31,22.17717654]
[1736794954007,28.49717654,176.45,176.31,22.17717654]
[1736794954204,28.49717654,176.45,176.37,2.8361]
[1736794954412,23.75977654,176.48,176.36,6.32]
[1736794954617,2.8355,176.41,176.37,3.2161]
[1736794954811,2.8355,176.41,176.28,191.0]
[1736794954812,22.17717654,176.45,176.31,28.49717654]
[1736794955008,22.17717654,176.45,176.32,1.599]
[1736794955809,1.5826,176.48,176.34,22.17717654]
[1736794956808,1.5826,176.48,176.38,2.836]
[1736794956809,2.8352,176.44,176.38,2.836]
[1736794957010,1.5826,176.48,176.38,2.836]
[1736794957215,1.5826,176.48,176.34,22.17717654]
[1736794957809,1.5826,176.48,176.39,2.8357]
[1736794957810,2.835,176.45,176.39,2.8357]
[1736794958009,2.835,176.45,176.32,192.599]
[1736794958010,1.5826,176.48,176.38,7.8932]
[1736794958215,22.17717654,176.47,176.38,6.32]
[1736794958418,2.8355,176.42,176.34,22.17717654]
[1736794958618,1.5826,176.48,176.34,22.17717654]
[1736794958913,2.8348,176.46,176.38,2.8359]
[1736794959114,1.5826,176.48,176.35,6.32]
[1736794959711,1.5826,176.48,176.4,2.8356]
[1736794959712,2.8349,176.45,176.4,2.8356]
[1736794960015,1.5826,176.48,176.37,22.17717654]
[1736794960717,22.17717654,176.53,176.4,22.17717654]
[1736794961018,22.17717654,176.53,176.41,1.6309]
[1736794962713,3.3768,176.54,176.42,6.34]
[1736794962908,2.8334,176.54,176.43,22.17717654]
[1736794963115,1.7094,176.57,176.49,22.17717654]
[1736794963313,1.5884,176.61,176.5,1.6611]
[1736794963511,23.76097654,176.65,176.51,1.7237]
[1736794963817,23.76097654,176.65,176.52,22.17717654]
[1736794964021,2.8325,176.6,176.56,2.8331]
[1736794964316,23.76097654,176.65,176.52,22.17717654]
[1736794964720,2.8323,176.62,176.56,2.833]
[1736794964916,2.8323,176.62,176.52,22.17717654]
[1736794965218,2.8332,176.56,176.51,4.5576]
[1736794965416,22.17717654,176.62,176.51,4.5576]
[1736794965823,22.17717654,176.62,176.52,2.8338]
[1736794966413,2.8331,176.57,176.52,2.8338]
[1736794967019,22.17717654,176.62,176.51,1.7237]
[1736794967215,2.8326,176.6,176.51,1.7237]
[1736794967819,2.8323,176.62,176.51,1.7237]
[1736794968021,23.76097654,176.65,176.52,22.17717654]
[1736794968822,2.8322,176.63,176.58,2.8328]
[1736794969220,2.8326,176.6,176.56,2.833]
[1736794969426,23.76097654,176.65,176.52,22.17717654]
[1736794969821,1.5838,176.65,176.52,22.17717654]
[1736794970119,2.8316,176.66,176.55,22.17717654]
[1736794970321,22.17717654,176.71,176.56,6.34]
[1736794970519,2.8317,176.66,176.61,2.8322]
[1736794970721,22.17717654,176.71,176.56,6.34]
[1736794971125,2.8314,176.67,176.62,2.832]
[1736794971524,22.17717654,176.71,176.56,6.34]
[1736794971723,2.8317,176.66,176.61,2.8323]
[1736794972825,22.17717654,176.74,176.58,22.17717654]
[1736794973023,22.17717654,176.74,176.59,1.6331]
[1736794973329,22.17717654,176.67,176.54,6.36]
[1736794973517,3.2691,176.66,176.54,6.36]
[1736794973722,3.2691,176.66,176.56,2.833]
[1736794973921,22.17717654,176.64,176.52,7.9931]
[1736794974820,2.8322,176.62,176.55,2.8332]
[1736794975025,1.5953,176.66,176.53,22.17717654]
[1736794975425,2.8319,176.64,176.56,2.833]
[1736794975729,2.8319,176.64,176.53,22.17717654]
[1736794976325,1.5953,176.66,176.53,22.17717654]
[1736794976725,1.5953,176.66,176.59,2.8326]
[1736794976924,1.5953,176.66,176.53,22.17717654]
[1736794977730,2.8321,176.63,176.59,2.8326]
[1736794977930,1.5953,176.66,176.53,22.17717654]
[1736794978225,1.5953,176.66,176.52,1.6331]
[1736794978427,22.17717654,176.64,176.52,7.9731]
[1736794978827,22.17717654,176.64,176.52,1.6331]
[1736794980432,22.17717654,176.61,176.46,22.17717654]
[1736794980627,22.17717654,176.61,176.46,28.51717654]
[1736794980829,2.8331,176.57,176.46,28.51717654]
[1736794981029,3.2189,176.65,176.49,22.17717654]
[1736794981030,22.17717654,176.64,176.49,22.17717654]
[1736794981227,22.17717654,176.64,176.5,1.6629]
[1736794981429,3.2189,176.65,176.55,22.17717654]
[1736794981630,1.5953,176.66,176.56,6.36]
[1736794981834,1.5953,176.66,176.62,2.832]
[1736794982034,1.5953,176.66,176.56,6.36]
[1736794982533,1.5953,176.66,176.51,7.9968]
[1736794982534,22.17717654,176.64,176.51,7.9968]
[1736794982732,1.65,176.63,176.51,7.9968]
[1736794982932,2.8333,176.55,176.51,7.9968]
[1736794983134,22.17717654,176.61,176.51,6.36]
[1736794983539,2.8336,176.54,176.51,6.36]
[1736794983729,22.17717654,176.58,176.45,3.3684]
[1736794984033,1.6478,176.57,176.45,1.6782]
[1736794984539,1.6478,176.57,176.46,22.17717654]
[1736794984834,1.6478,176.57,176.53,2.8335]
[1736794985031,1.6478,176.57,176.5,22.17717654]
[1736794985235,1.6478,176.57,176.47,22.17717654]
[1736794985931,1.6478,176.57,176.55,2.8333]
[1736794986136,2.8325,176.6,176.55,2.8333]
[1736794986334,1.7371,176.62,176.55,2.8333]
[1736794986530,2.8323,176.61,176.56,2.833]
[1736794986737,39.25717654,176.76,176.56,2.833]
[1736794986738,22.17717654,176.7,176.56,22.17717654]
[1736794986939,3.3514,176.72,176.59,22.17717654]
[1736794987236,3.3514,176.72,176.62,22.17717654]
[1736794987636,3.3514,176.72,176.6,6.36]
[1736794987637,1.7371,176.72,176.65,22.17717654]
[1736794987836,1.6143,176.81,176.68,22.17717654]
[1736794988041,1.6143,176.81,176.69,6.38]
[1736794988237,1.6143,176.81,176.72,2.8305]
[1736794988436,1.6143,176.81,176.69,6.38]
[1736794988738,2.8296,176.78,176.71,2.8307]
[1736794989033,1.6143,176.81,176.69,8.0068]
[1736794990136,1.7201,176.8,176.69,8.0068]
[1736794990334,1.7201,176.8,176.69,6.38]
[1736794990636,22.17717654,176.79,176.65,22.17717654]
[1736794990836,2.8305,176.73,176.66,2.8315]
[1736794991041,1.642,176.78,176.65,22.17717654]
[1736794991335,1.642,176.78,176.64,6.36]
[1736794991540,2.8309,176.7,176.64,9.1917]
[1736794992042,1.642,176.78,176.64,6.36]
[1736794992340,22.17717654,176.76,176.64,6.36]
[1736794992734,22.17717654,176.76,176.62,1.5695]
[1736794992937,22.17717654,176.73,176.61,6.36]
[1736794993135,1.5881,176.72,176.61,6.36]
[1736794993538,1.5881,176.72,176.57,1.6489]
[1736794993539,22.17717654,176.7,176.57,1.6489]
[1736794994241,22.17717654,176.64,176.51,6.36]
[1736794994432,3.164,176.63,176.51,6.36]
[1736794995041,22.17717654,176.61,176.51,6.36]
[1736794995239,1.6368,176.6,176.51,6.36]
[1736794997246,3.164,176.63,176.52,22.17717654]
[1736794997746,3.164,176.63,176.51,6.36]
[1736794998242,2.8332,176.56,176.51,9.1939]
[1736794998443,3.164,176.63,176.51,6.36]
[1736794999149,3.164,176.63,176.5,97.2]
[1736794999645,1.5759,176.63,176.52,22.17717654]
[1736794999847,1.6368,176.66,176.55,22.17717654]
[1736795000048,1.6368,176.66,176.53,1.7206]
[1736795000049,4.4684,176.66,176.61,2.8323]
[1736795000353,1.6798,176.69,176.61,22.17717654]
[1736795000549,2.831,176.7,176.65,2.8316]
[1736795000746,1.6798,176.74,176.63,6.36]
[1736795001047,1.6798,176.74,176.65,2.8316]
[1736795001846,2.8307,176.72,176.65,2.8316]
[1736795002039,1.6798,176.74,176.65,2.8316]
[1736795002947,2.831,176.7,176.65,2.8316]
[1736795003549,1.6798,176.74,176.62,1.7206]
[1736795003747,22.17717654,176.73,176.62,1.7206]
[1736795003942,1.6798,176.74,176.65,2.8316]
[1736795004139,2.8306,176.73,176.64,22.17717654]
[1736795004345,1.6798,176.74,176.64,22.17717654]
[1736795004539,6.80383556,176.78,176.62,1.7206]
[1736795004540,2.8305,176.73,176.67,22.17717654]
[1736795004744,1.7248,176.78,176.67,22.17717654]
[1736795005046,1.7248,176.78,176.7,22.17717654]
[1736795005251,3.2829,176.81,176.71,6.36]
[1736795006251,2.8297,176.78,176.72,2.8306]
[1736795006452,2.8297,176.78,176.71,6.36]
[1736795007053,3.2829,176.81,176.71,6.36]
[1736795007652,3.2829,176.81,176.67,22.17717654]
[1736795007653,22.17717654,176.79,176.67,6.38]
[1736795008063,22.17717654,176.76,176.64,97.2]
[1736795008365,22.17717654,176.73,176.64,97.2]
[1736795008660,2.8317,176.65,176.64,97.2]
[1736795008865,3.2622,176.72,176.62,6.38]
[1736795009066,22.17717654,176.67,176.56,1.648]
[1736795009260,2.8326,176.6,176.56,1.648]
[1736795009657,22.17717654,176.67,176.56,1.648]
[1736795009862,2.8323,176.62,176.56,4.4811]
[1736795010058,22.17717654,176.67,176.54,97.18]
[1736795010358,22.17717654,176.64,176.49,22.17717654]
[1736795010563,1.7131,176.63,176.49,22.17717654]
[1736795010956,1.6187,176.62,176.49,22.17717654]
[1736795011456,1.6187,176.62,176.47,36.0614788]
[1736795011651,2.8331,176.57,176.51,2.8339]
[1736795011851,36.0614788,176.6,176.47,36.0614788]
[1736795012562,36.0614788,176.6,176.47,42.4414788]
[1736795013159,1.651,176.61,176.5,36.0614788]
[1736795013760,1.651,176.61,176.47,42.4414788]
[1736795014264,1.6187,176.62,176.5,36.0614788]
[1736795014460,1.6187,176.62,176.53,36.0614788]
[1736795014660,36.0614788,176.69,176.54,7.984]
[1736795014964,1.5911,176.68,176.54,9.6185]
[1736795015169,1.5911,176.68,176.56,36.0614788]
[1736795015968,1.5911,176.68,176.59,36.0614788]
[1736795016154,2.8303,176.74,176.59,97.2]
[1736795016358,36.0614788,176.82,176.68,36.0614788]
[1736795016562,36.0614788,176.82,176.69,6.38]
[1736795016865,36.0614788,176.82,176.69,7.9468]
[1736795017063,2.8298,176.78,176.72,2.8305]
[1736795017260,36.0614788,176.82,176.69,7.9468]
[1736795017460,36.0614788,176.82,176.72,2.8305]
[1736795017667,36.0614788,176.82,176.69,7.9468]
[1736795018260,36.0614788,176.82,176.73,2.8303]
[1736795018461,36.0614788,176.82,176.69,7.9468]
[1736795018760,4.807,176.83,176.71,36.0614788]
[1736795019458,4.807,176.83,176.69,7.9468]
[1736795020461,36.0614788,176.82,176.69,7.9468]
[1736795021264,36.0614788,176.82,176.72,2.8304]
[1736795021765,2.8299,176.77,176.72,2.8304]
[1736795022066,36.0614788,176.82,176.69,7.9468]
[1736795022261,2.8296,176.79,176.69,1.5668]
[1736795022462,36.0614788,176.82,176.69,1.5668]
[1736795022864,2.83,176.76,176.71,2.8307]
[1736795023167,36.0614788,176.82,176.69,1.5668]
[1736795023362,2.8311,176.69,176.62,36.0614788]
[1736795023568,36.0614788,176.79,176.62,36.0614788]
[1736795023569,36.0614788,176.76,176.62,36.0614788]
[1736795023766,36.0614788,176.76,176.61,6.38]
[1736795023957,2.8315,176.67,176.62,2.8321]
[1736795024157,36.0614788,176.76,176.62,36.0614788]
[1736795024365,42.4414788,176.79,176.65,36.0614788]
[1736795024868,6.38,176.79,176.65,36.0614788]
[1736795025567,2.8301,176.75,176.69,2.8309]
[1736795025765,36.0614788,176.82,176.68,42.4414788]
[1736795026062,36.0614788,176.82,176.69,8.0387]
[1736795026661,2.83,176.76,176.71,2.8306]
[1736795027569,2.8302,176.75,176.7,2.8309]
[1736795027769,36.0614788,176.82,176.69,8.0387]
[1736795027966,4.807,176.83,176.69,8.0387]
[1736795028267,2.8294,176.8,176.71,36.0614788]
[1736795028868,2.829,176.82,176.71,36.0614788]
[1736795029264,1.5911,176.83,176.77,2.8297]
[1736795029471,2.8291,176.81,176.77,2.8297]
[1736795029768,1.5911,176.83,176.74,36.0614788]
[1736795030367,36.0614788,176.88,176.74,36.0614788]
[1736795030562,1.5876,176.87,176.74,36.0614788]
[1736795030762,1.5876,176.87,176.77,36.0614788]
[1736795030965,2.8285,176.86,176.82,2.8289]
[1736795031165,1.654,176.92,176.8,36.0614788]
[1736795031467,1.654,176.92,176.81,1.7097]
[1736795031661,2.8279,176.89,176.85,2.8284]
[1736795031866,2.8279,176.89,176.81,1.7097]
[1736795031867,22.1039294,176.98,176.82,22.1039294]
[1736795032062,0.97254765,176.97,176.82,22.1039294]
[1736795032269,2.8274,176.92,176.87,2.828]
[1736795032465,22.1039294,176.92,176.81,1.7097]
[1736795032670,22.1039294,176.89,176.75,6.4]
[1736795032864,22.1039294,176.86,176.75,6.4]
[1736795033064,22.1039294,176.86,176.73,98.8137]
[1736795033972,2.8291,176.81,176.76,2.8299]
[1736795034183,22.1039294,176.86,176.73,98.8137]
[1736795034570,2.8293,176.81,176.73,98.8137]
[1736795034769,5.0378,176.88,176.75,22.1039294]
[1736795034970,2.8282,176.87,176.82,2.8288]
[1736795035667,1.7025,176.88,176.82,2.8288]
[1736795035867,2.8284,176.86,176.82,2.8288]
[1736795036373,2.8284,176.86,176.81,2.8291]
[1736795036769,1.7025,176.88,176.75,22.1039294]
[1736795037174,2.8291,176.82,176.75,22.1039294]
[1736795037477,1.7025,176.88,176.74,6.38]
[1736795037674,2.8288,176.83,176.78,2.8296]
[1736795037869,1.7025,176.88,176.74,6.38]
[1736795038779,2.829,176.82,176.78,2.8295]
[1736795039780,1.7025,176.88,176.74,6.38]
[1736795040376,1.7025,176.88,176.77,2.8296]
[1736795040586,1.7025,176.88,176.73,127.2776294]
[1736795040886,2.8291,176.82,176.73,127.2776294]
[1736795041071,1.7025,176.88,176.73,127.2776294]
[1736795041476,2.8291,176.82,176.78,2.8295]
[1736795041677,1.7025,176.88,176.73,127.2776294]
[1736795041872,1.7025,176.88,176.76,22.1039294]
[1736795042077,2.8285,176.85,176.81,2.829]
[1736795042277,1.7025,176.88,176.76,22.1039294]
[1736795042979,2.8288,176.84,176.8,2.8292]
[1736795043481,2.8285,176.86,176.82,2.8289]
[1736795043682,22.1039294,176.92,176.8,6.36]
[1736795044485,22.1039294,176.89,176.75,6.36]
[1736795044682,22.1039294,176.83,176.7,213.1039294]
[1736795044886,2.8304,176.74,176.7,2.8309]
[1736795045078,4.9035,176.82,176.7,2.8309]
[1736795045283,22.1039294,176.8,176.67,28.4839294]
[1736795045784,6.38,176.81,176.67,28.4839294]